fUSD/lending_fUSD_20260509
["ID","MTS","AMOUNT","RATE_DAILY","PERIOD"]
[421922768,1778332317000,-500.0,0.00041994,50]
[421922767,1778332317000,-500.0,0.00041994,30]
[421922762,1778332317000,-1500.0,0.0004196,30]
[421922769,1778332317000,-500.0,0.00041994,60]
[421922773,1778332317000,-790.0,0.00041995,60]
[421922771,1778332317000,-500.0,0.00041994,90]
[421922775,1778332317000,-790.0,0.00041995,60]
[421922784,1778332317000,-500.0,0.00041998,30]
[421922750,1778332317000,-304.39705839,0.0004195,120]
[421922765,1778332317000,-9417.69,0.00041975,120]
[421922760,1778332317000,-179.02219684,0.00041958,120]
[421922736,1778332317000,-582.38346083,0.00041906,120]
[421922759,1778332317000,-216.53393623,0.00041958,120]
[421922777,1778332317000,-790.0,0.00041995,60]
[421922721,1778332317000,-4190.39769621,0.000419,120]
[421922723,1778332317000,-215.80598678,0.000419,120]
[421922733,1778332317000,-582.38346083,0.00041906,120]
[421922722,1778332317000,-5767.6789304,0.000419,31]
[421922725,1778332317000,-582.38346084,0.00041906,120]
[421922724,1778332317000,-215.80598677,0.000419,120]
[421922729,1778332317000,-582.38346083,0.00041906,120]
[421922726,1778332317000,-582.38346084,0.00041906,120]
[421922727,1778332317000,-582.38346084,0.00041906,120]
[421922728,1778332317000,-582.38346084,0.00041906,120]
[421922731,1778332317000,-582.38346083,0.00041906,120]
[421922732,1778332317000,-582.38346083,0.00041906,120]
[421922730,1778332317000,-582.38346083,0.00041906,120]
[421922737,1778332317000,-582.38346083,0.00041906,120]
[421922734,1778332317000,-582.38346083,0.00041906,120]
[421922738,1778332317000,-751.20571227,0.00041917,120]
[421922735,1778332317000,-582.38346083,0.00041906,120]
[421922742,1778332317000,-161.83,0.00041945,120]
[421922743,1778332317000,-161.84,0.00041945,120]
[421922739,1778332317000,-829.25,0.00041927,120]
[421922746,1778332317000,-578.35,0.00041945,120]
[421922745,1778332317000,-578.35,0.00041945,120]
[421922741,1778332317000,-477.87,0.00041945,120]
[421922744,1778332317000,-578.35,0.00041945,120]
[421922740,1778332317000,-1050.39,0.00041936,2]
[421922747,1778332317000,-578.35,0.00041945,120]
[421922748,1778332317000,-578.38,0.00041945,120]
[421922778,1778332317000,-869.0,0.00041995,60]
[421922808,1778332317000,-1155.97546027,0.00042,120]
[421922782,1778332317000,-897.0,0.00041995,60]
[421922785,1778332317000,-500.0,0.00041998,120]
[421922813,1778332317000,-2802.24539698,0.00042,120]
[421922814,1778332317000,-239.41397343,0.00042,120]
[421922815,1778332317000,-2000.00000001,0.00042,120]
[421922818,1778332317000,-609.59678025,0.00042,120]
[421922821,1778332317000,-158.32047735,0.00042,60]
[421922825,1778332317000,-332.62644391,0.00042,31]
[421922820,1778332317000,-202.00302696,0.00042,120]
[421922817,1778332317000,-1660.865441,0.00042,120]
[421922824,1778332317000,-164.68291782,0.00042,120]
[421922828,1778332317000,-2000.0,0.00042,120]
[421922823,1778332317000,-6784.27659444,0.00042,120]
[421922810,1778332317000,-50000.0,0.00042,120]
[421922827,1778332317000,-2000.0,0.00042,120]
[421922822,1778332317000,-4141.01330423,0.00042,120]
[421922826,1778332317000,-500.0,0.00042,120]
[421922836,1778332317000,-1399999.0,0.00042,120]
[421922829,1778332317000,-428.0,0.00042,30]
[421922833,1778332317000,-50000.0,0.00042,120]
[421922838,1778332317000,-136892.48,0.00042,7]
[421922830,1778332317000,-35608.05448182,0.00042,120]
[421922832,1778332317000,-50000.0,0.00042,120]
[421922835,1778332317000,-372.59563933,0.00042,120]
[421922831,1778332317000,-50000.0,0.00042,120]
[421922834,1778332317000,-14389.9455181,0.00042,120]
[421922837,1778332317000,-3919.738,0.00042,30]
[421922819,1778332317000,-1307.9183593,0.00042,120]
[421922807,1778332317000,-50000.0,0.00042,120]
[421922811,1778332317000,-50000.0,0.00042,120]
[421922812,1778332317000,-38912.04149734,0.00042,120]
[421922783,1778332317000,-224.82111816,0.00041998,120]
[421922781,1778332317000,-897.0,0.00041995,60]
[421922779,1778332317000,-975.60535752,0.00041995,60]
[421922786,1778332317000,-1429.14467886,0.00041998,30]
[421922776,1778332317000,-790.0,0.00041995,60]
[421922780,1778332317000,-897.0,0.00041995,60]
[421922787,1778332317000,-998.59040303,0.00041998,30]
[421922788,1778332317000,-583.32106533,0.00042,5]
[421922791,1778332317000,-422.45442354,0.00042,20]
[421922789,1778332317000,-500.0,0.00042,2]
[421922816,1778332317000,-303.67339183,0.00042,120]
[421922792,1778332317000,-5000.0,0.00042,20]
[421922797,1778332317000,-9713.0,0.00042,120]
[421922790,1778332317000,-300.000009,0.00042,15]
[421922804,1778332317000,-23595.0,0.00042,120]
[421922809,1778332317000,-974.78526052,0.00042,120]
[421922806,1778332317000,-500.0,0.00042,45]
[421922805,1778332317000,-2609.65286566,0.00042,30]
[421922793,1778332317000,-150.0,0.00042,6]
[421922799,1778332317000,-9247.0,0.00042,120]
[421922800,1778332317000,-500.0,0.00042,45]
[421922802,1778332317000,-1035.84194745,0.00042,120]
[421922798,1778332317000,-50000.0,0.00042,120]
[421922803,1778332317000,-753.75638282,0.00042,120]
[421922795,1778332317000,-50000.0,0.00042,120]
[421922794,1778332317000,-356.86485,0.00042,14]
[421922796,1778332317000,-1014.0,0.00042,120]
[421922801,1778332317000,-50000.0,0.00042,120]
[421922839,1778332318000,-3500.0,0.00042,120]
[421922843,1778332318000,-11623.83391486,0.00042,120]
[421922841,1778332318000,-1000000.0,0.00042,120]
[421922842,1778332318000,-889440.987067,0.00042,120]
[421922844,1778332318000,-1037.9735354,0.00041096,120]
[421922845,1778332318000,240.0,0.00030137,120]
[421922840,1778332318000,-1000000.0,0.00042,120]
[421922849,1778332318000,-517.0,0.00022936,7]
[421922852,1778332318000,-822.505833,0.00027397,2]
[421922848,1778332318000,-641.0,0.00022466,7]
[421922847,1778332318000,-420.0,0.00022466,7]
[421922850,1778332318000,-1003.04537443,0.0002517,2]
[421922851,1778332318000,-5043.95462557,0.0002517,2]
[421922846,1778332318000,-6047.0,0.0002217,2]
[421922855,1778332319000,-822.50582786,0.00027397,2]
[421922854,1778332319000,-822.505833,0.00027397,2]
[421922853,1778332319000,-822.505833,0.00027397,2]
[421922856,1778332319000,-4745.893,0.0002817,2]
[421922860,1778332319000,-151.0,0.00041096,120]
[421922858,1778332319000,-3068.7950466,0.00041096,120]
[421922859,1778332319000,-1349.430088,0.00041096,120]
[421922857,1778332319000,-1065.80891604,0.00037609,2]
[421922862,1778332319000,-1349.430088,0.00041096,120]
[421922866,1778332319000,-151.0,0.00041096,120]
[421922867,1778332319000,-4106.768582,0.00041096,120]
[421922863,1778332319000,-151.0,0.00041096,120]
[421922864,1778332319000,-4106.768582,0.00041096,120]
[421922869,1778332319000,-1349.430088,0.00041096,120]
[421922868,1778332319000,-151.0,0.00041096,120]
[421922870,1778332319000,-1366.68195004,0.00041096,120]
[421922872,1778332319000,-4106.768582,0.00041096,120]
[421922871,1778332319000,-2740.08663196,0.00041096,120]
[421922873,1778332319000,-1349.430088,0.00041096,120]
[421922874,1778332319000,-151.0,0.00041096,120]
[421922875,1778332319000,-4106.768582,0.00041096,120]
[421922877,1778332319000,-55468.41507108,0.00042,120]
[421922876,1778332319000,-1349.430088,0.00041096,120]
[421922878,1778332319000,-2024.45,0.00042,120]
[421922861,1778332319000,-4106.768582,0.00041096,120]
[421922865,1778332319000,-1349.430088,0.00041096,120]
[421922879,1778332320000,161.86,0.00030136,120]
[421922880,1778332325000,408.84,0.00030137,120]
[421922881,1778332325000,408.83,0.00030137,120]
[421922883,1778332438000,1384.847875,0.00028514,120]
[421922884,1778332470000,3577.78,0.00030137,120]
[421922885,1778332534000,6218.41,0.00030137,120]
[421922889,1778332653000,408.035535,0.00029534,120]
[421922892,1778332685000,204.017768,0.00028647,120]
[421922893,1778332720000,7487.16158652,0.00030136,120]
[421922915,1778333232000,702.84,0.00030137,120]
[421922918,1778333249000,527.13,0.00030137,120]
[421922919,1778333264000,395.35,0.00030137,120]
[421922920,1778333278000,593.02,0.00030137,120]
[421922924,1778333431000,-522.0,0.00012352,2]
[421922925,1778333431000,-150.57011938,0.00012353,2]
[421922926,1778333431000,-150.0,0.00012353,2]
[421922927,1778333431000,-150.0,0.00012353,2]
[421922929,1778333431000,-150.0,0.00012353,2]
[421922932,1778333431000,-150.0,0.00012353,2]
[421922930,1778333431000,-173.64100033,0.00012353,2]
[421922928,1778333431000,-150.0,0.00012353,2]
[421922934,1778333431000,-150.0,0.00012353,2]
[421922933,1778333431000,-150.0,0.00012353,2]
[421922935,1778333431000,-150.0,0.00012353,2]
[421922936,1778333431000,-150.0,0.0001304,2]
[421922937,1778333431000,-882.078,0.00013457,2]
[421922938,1778333431000,-5591.44266054,0.00013632,2]
[421922931,1778333431000,-150.0,0.00012353,2]
[421922949,1778333437000,-500.0,0.00013731,2]
[421922948,1778333437000,-583.27218048,0.00013731,2]
[421922946,1778333437000,-551.87866244,0.00013731,2]
[421922945,1778333437000,-500.0,0.00013731,2]
[421922944,1778333437000,-150.0,0.00013731,2]
[421922947,1778333437000,-500.0,0.00013731,2]
[421922942,1778333437000,-19511.20619443,0.00013632,2]
[421922941,1778333437000,-429.35064503,0.00013632,2]
[421922950,1778333437000,-583.27218048,0.00013731,2]
[421922943,1778333437000,-150.0,0.00013726,2]
[421922951,1778333437000,-500.0,0.00013731,2]
[421922952,1778333437000,-583.27218048,0.00013731,2]
[421922955,1778333437000,-335.8259731,0.00013731,2]
[421922963,1778333437000,-313.51987184,0.00013731,2]
[421922959,1778333437000,-583.27218048,0.00013731,2]
[421922961,1778333437000,-583.27218048,0.00013731,2]
[421922960,1778333437000,-500.0,0.00013731,2]
[421922954,1778333437000,-583.27218048,0.00013731,2]
[421922958,1778333437000,-500.0,0.00013731,2]
[421922957,1778333437000,-583.27218048,0.00013731,2]
[421922953,1778333437000,-500.0,0.00013731,2]
[421922956,1778333437000,-164.1740269,0.00013731,2]
[421922962,1778333437000,-500.0,0.00013731,2]
[421922981,1778333440000,-500.0,0.00013731,2]
[421922982,1778333440000,-67.37484166,0.00013731,2]
[421922980,1778333440000,-269.75230864,0.00013731,2]
[421922997,1778333445000,-298.96631852,0.00013731,2]
[421922999,1778333445000,-500.0,0.00013731,2]
[421922998,1778333445000,-216.9310203,0.00013731,2]
[421923000,1778333445000,-10.0689797,0.00013731,2]
[421923002,1778333445000,-583.27218048,0.00013731,2]
[421923001,1778333445000,-573.20320078,0.00013731,2]
[421923007,1778333445000,-500.0,0.00013731,2]
[421923003,1778333445000,-500.0,0.00013731,2]
[421923005,1778333445000,-583.27218048,0.00013731,2]
[421923006,1778333445000,-583.27218048,0.00013731,2]
[421923009,1778333445000,-508.0,0.00013732,2]
[421923004,1778333445000,-500.0,0.00013731,2]
[421923008,1778333445000,-1568.30204859,0.00013732,2]
[421923011,1778333446000,-2023.688,0.00013732,2]
[421923010,1778333446000,-12681.77406124,0.00013732,2]
[421923043,1778333689000,185.470697,0.00028368,120]
[421923045,1778333950000,1479.17,0.00030137,120]
[421923048,1778334136000,1476.6,0.00030137,120]
[421923049,1778334251000,2500.0,0.00030137,120]
[421923050,1778334265000,200.926589,0.00028119,120]
[421923051,1778334300000,732.7,0.00030137,120]
[421923052,1778334333000,4001.2,0.00030137,120]
[421923057,1778334505000,-7000.91163363,0.00013532,2]
[421923056,1778334505000,-1093.42636637,0.00013531,3]
[421923055,1778334505000,-150.0,0.00013531,2]
[421923054,1778334505000,-1050.0,0.00013531,2]
[421923053,1778334505000,-705.662,0.00013359,2]
[421923059,1778334507000,-3605.38493363,0.00013532,2]
[421923058,1778334507000,-6394.61506637,0.00013532,2]
[421923060,1778334514000,-500.0,0.00013531,2]
[421923061,1778334515000,-607.05941307,0.00013531,2]
[421923062,1778334515000,-500.0,0.00013531,2]
[421923063,1778334515000,-40.28488693,0.00013531,2]
[421923080,1778334631000,-155.86383988,0.00013522,2]
[421923070,1778334631000,-855.06629437,0.000134,2]
[421923072,1778334631000,-402.41829437,0.00013431,2]
[421923071,1778334631000,-797.58170563,0.00013431,2]
[421923073,1778334631000,-46.29760494,0.00013432,2]
[421923075,1778334631000,-675.352,0.00013432,2]
[421923076,1778334631000,-299.70681413,0.00013432,2]
[421923074,1778334631000,-451.28410069,0.00013432,2]
[421923077,1778334631000,-1359.33888842,0.00013432,2]
[421923078,1778334631000,-4318.86390546,0.00013432,2]
[421923079,1778334631000,-189.0537622,0.00013432,2]
[421923081,1778334631000,-150.0,0.00013531,2]
[421923094,1778334631000,-500.0,0.00013531,2]
[421923084,1778334631000,-500.0,0.00013531,2]
[421923082,1778334631000,-444.48210384,0.00013531,2]
[421923090,1778334631000,-500.0,0.00013531,2]
[421923092,1778334631000,-500.0,0.00013531,2]
[421923089,1778334631000,-500.0,0.00013531,2]
[421923093,1778334631000,-500.0,0.00013531,2]
[421923091,1778334631000,-500.0,0.00013531,2]
[421923086,1778334631000,-500.0,0.00013531,2]
[421923083,1778334631000,-500.0,0.00013531,2]
[421923085,1778334631000,-500.0,0.00013531,2]
[421923087,1778334631000,-500.0,0.00013531,2]
[421923088,1778334631000,-377.35039121,0.00013531,2]
[421923107,1778334632000,-500.0,0.00013531,2]
[421923101,1778334632000,-500.0,0.00013531,2]
[421923099,1778334632000,-500.0,0.00013531,2]
[421923096,1778334632000,-500.0,0.00013531,2]
[421923097,1778334632000,-500.0,0.00013531,2]
[421923105,1778334632000,-500.0,0.00013531,2]
[421923109,1778334632000,-500.0,0.00013531,2]
[421923118,1778334632000,-500.0,0.00013531,2]
[421923123,1778334632000,-500.0,0.00013531,2]
[421923103,1778334632000,-500.0,0.00013531,2]
[421923124,1778334632000,-387.73503912,0.00013531,2]
[421923126,1778334632000,-867156.85246017,0.00013532,2]
[421923125,1778334632000,-500.0,0.00013531,2]
[421923115,1778334632000,-500.0,0.00013531,2]
[421923127,1778334632000,-480.06658198,0.00013532,2]
[421923112,1778334632000,-500.0,0.00013531,2]
[421923116,1778334632000,-500.0,0.00013531,2]
[421923121,1778334632000,-500.0,0.00013531,2]
[421923113,1778334632000,-500.0,0.00013531,2]
[421923119,1778334632000,-500.0,0.00013531,2]
[421923167,1778334638000,-25531.99955189,0.00013532,2]
[421923166,1778334638000,-304.0,0.00013532,2]
[421923164,1778334638000,-857.78013005,0.00013532,2]
[421923165,1778334638000,-1168.46084599,0.00013532,2]
[421923319,1778334640000,-650.4944148,0.00013532,2]
[421923321,1778334640000,-0.04136844,0.00013532,2]
[421923318,1778334640000,-1515.4,0.00013532,2]
[421923329,1778334644000,-291.4856858,0.00013531,2]
[421923328,1778334644000,-4258.65414183,0.00013531,2]
[421923339,1778334645000,-116.3265637,0.00013531,2]
[421923338,1778334645000,-47.37704629,0.00013531,2]
[421923340,1778334645000,-686.5834363,0.00013532,2]
[421923334,1778334645000,-15111.83706238,0.00013531,2]
[421923343,1778334646000,-2026.7,0.00013532,2]
[421923342,1778334646000,-1558.470364,0.00013532,2]
[421923341,1778334646000,-4397.16864574,0.00013532,2]
[421923346,1778334907000,3728.78299897,0.00030137,120]
[421923347,1778335121000,200.0,0.00013499,7]
[421923363,1778335584000,-504.73233273,0.00041683,120]
[421923364,1778335584000,-504.73233272,0.00041683,120]
[421923366,1778335584000,-504.73233272,0.00041683,120]
[421923365,1778335584000,-504.73233272,0.00041683,120]
[421923367,1778335584000,-504.73233272,0.00041683,120]
[421923362,1778335584000,-500.0,0.00041683,120]
[421923369,1778335584000,-100000.0,0.00041683,30]
[421923368,1778335584000,-100000.0,0.00041683,30]
[421923370,1778335584000,-19457.05371192,0.00041683,30]
[421923372,1778335584000,-3382.26,0.00041683,120]
[421923373,1778335584000,-29500.0,0.00041683,120]
[421923375,1778335584000,-7621.15203578,0.00041683,30]
[421923374,1778335584000,-500.0,0.00041683,120]
[421923376,1778335584000,-21476.02159267,0.00041683,120]
[421923377,1778335584000,-4018.28914917,0.00041683,60]
[421923371,1778335584000,-681.16,0.00041683,120]
[421923378,1778335585000,-9648.84281567,0.00041683,60]
[421923380,1778335585000,-3982.0,0.00041683,30]
[421923379,1778335585000,-4161.49428261,0.00041683,120]
[421923382,1778335585000,-32914.01985215,0.00041683,120]
[421923381,1778335585000,-2082070.68854164,0.00041683,60]
[421923383,1778335585000,-8959.10902556,0.00041683,30]
[421923384,1778335585000,-22970.41686458,0.00041683,30]
[421923385,1778335585000,-32795.07921995,0.00041683,120]
[421923387,1778335585000,-5132.53140152,0.00041683,120]
[421923389,1778335585000,-16124.81231153,0.00041683,60]
[421923388,1778335585000,-304.82148548,0.00041683,120]
[421923390,1778335585000,-6392.97603924,0.00041683,30]
[421923391,1778335585000,-64354.96200946,0.00041683,60]
[421923392,1778335585000,5077.0,0.00041683,30]
[421923393,1778335585000,2325.91782798,0.00041683,30]
[421923386,1778335585000,-343.2336584,0.00041683,120]
[421923394,1778335585000,15392.0,0.00041683,30]
[421923395,1778335587000,670.0,0.00041683,30]
[421923396,1778335591000,776.0,0.00041683,30]
[421923397,1778335592000,462.0,0.00041683,30]
[421923400,1778335610000,-165.9,0.0002867,30]
[421923402,1778335610000,-1385.6,0.00028693,30]
[421923398,1778335610000,-594.30158332,0.00028208,50]
[421923399,1778335610000,-165.85,0.0002867,30]
[421923401,1778335610000,-1399.61,0.00028693,30]
[421923407,1778335610000,-165.85,0.00028868,30]
[421923405,1778335610000,-1399.61,0.00028788,30]
[421923404,1778335610000,-165.9,0.00028769,30]
[421923406,1778335610000,-1385.6,0.00028788,30]
[421923408,1778335610000,-165.9,0.00028868,30]
[421923409,1778335610000,-1399.61,0.00028883,30]
[421923403,1778335610000,-165.85,0.00028769,30]
[421923424,1778335611000,-273.634,0.0003041,120]
[421923426,1778335611000,-168.0,0.00030837,30]
[421923425,1778335611000,-174.0,0.00030579,120]
[421923423,1778335611000,-228.36854826,0.00029892,60]
[421923422,1778335611000,-1385.6,0.00029169,30]
[421923421,1778335611000,-1399.61,0.00029169,30]
[421923427,1778335611000,-658.0,0.00030837,30]
[421923420,1778335611000,-165.9,0.00029166,30]
[421923416,1778335611000,-165.9,0.00029067,30]
[421923418,1778335611000,-1385.6,0.00029074,30]
[421923417,1778335611000,-1399.61,0.00029074,30]
[421923415,1778335611000,-165.85,0.00029067,30]
[421923413,1778335611000,-1399.61,0.00028979,30]
[421923414,1778335611000,-1385.6,0.00028979,30]
[421923412,1778335611000,-165.9,0.00028968,30]
[421923411,1778335611000,-165.85,0.00028968,30]
[421923410,1778335611000,-1385.6,0.00028883,30]
[421923419,1778335611000,-165.85,0.00029166,30]
[421923429,1778335611000,-162.0,0.00030837,30]
[421923438,1778335611000,-151.0,0.00031841,30]
[421923430,1778335611000,-151.0,0.00030841,30]
[421923448,1778335611000,-500.0,0.00032684,120]
[421923447,1778335611000,-333.0,0.00032493,120]
[421923446,1778335611000,-775.292,0.0003241,120]
[421923445,1778335611000,-500.0,0.0003241,120]
[421923444,1778335611000,-500.0,0.0003241,120]
[421923443,1778335611000,-500.0,0.0003241,120]
[421923441,1778335611000,-174.0,0.00032108,120]
[421923442,1778335611000,-160.0,0.000324,34]
[421923428,1778335611000,-1317.0,0.00030837,30]
[421923439,1778335611000,-160.0,0.00031842,30]
[421923432,1778335611000,-315.0,0.00030842,30]
[421923433,1778335611000,-160.0,0.000314,30]
[421923431,1778335611000,-160.0,0.00030842,30]
[421923440,1778335611000,-315.0,0.00031842,30]
[421923435,1778335611000,-658.0,0.00031837,30]
[421923437,1778335611000,-162.0,0.00031837,30]
[421923436,1778335611000,-1317.0,0.00031837,30]
[421923434,1778335611000,-333.0,0.00031507,120]
[421923458,1778335612000,-500.0,0.00032958,120]
[421923465,1778335612000,-658.0,0.00033837,30]
[421923464,1778335612000,-174.0,0.00033713,120]
[421923462,1778335612000,-160.0,0.000334,38]
[421923461,1778335612000,-208.0,0.00033321,120]
[421923460,1778335612000,-414.67,0.000331,30]
[421923456,1778335612000,-500.0,0.00032958,120]
[421923459,1778335612000,-463.44,0.000331,30]
[421923454,1778335612000,-315.0,0.00032842,30]
[421923453,1778335612000,-160.0,0.00032842,30]
[421923455,1778335612000,-500.0,0.00032958,120]
[421923466,1778335612000,-1317.0,0.00033837,30]
[421923452,1778335612000,-151.0,0.00032841,30]
[421923449,1778335612000,-658.0,0.00032837,30]
[421923450,1778335612000,-1317.0,0.00032837,30]
[421923451,1778335612000,-168.0,0.00032837,30]
[421923457,1778335612000,-500.0,0.00032958,120]
[421923467,1778335612000,-151.0,0.00033841,30]
[421923463,1778335612000,-333.0,0.00033479,120]
[421923468,1778335612000,-160.0,0.00033842,30]
[421923487,1778335612000,-5322.47837,0.00036074,30]
[421923469,1778335612000,-315.0,0.00033842,30]
[421923486,1778335612000,-315.0,0.00035842,30]
[421923485,1778335612000,-160.0,0.00035842,30]
[421923484,1778335612000,-151.0,0.00035841,30]
[421923483,1778335612000,-1317.0,0.00035837,30]
[421923482,1778335612000,-658.0,0.00035837,30]
[421923479,1778335612000,-275.0,0.00035,120]
[421923480,1778335612000,-160.0,0.000354,45]
[421923481,1778335612000,-727.67757778,0.00035513,96]
[421923476,1778335612000,-208.0,0.00034987,120]
[421923470,1778335612000,-160.0,0.000344,42]
[421923478,1778335612000,-150.0,0.00035,120]
[421923472,1778335612000,-1317.0,0.00034837,30]
[421923474,1778335612000,-160.0,0.00034842,30]
[421923471,1778335612000,-658.0,0.00034837,30]
[421923473,1778335612000,-151.0,0.00034841,30]
[421923475,1778335612000,-315.0,0.00034842,30]
[421923477,1778335612000,-175.0,0.00035,120]
[421923498,1778335613000,-150.0,0.00037753,120]
[421923505,1778335613000,-1795.0,0.00038329,120]
[421923502,1778335613000,-1444.0,0.00037753,120]
[421923501,1778335613000,-320.0,0.00037753,120]
[421923500,1778335613000,-200.0,0.00037753,120]
[421923499,1778335613000,-162.0,0.00037753,120]
[421923503,1778335613000,-258.98981769,0.00038039,112]
[421923497,1778335613000,-320.0,0.00037616,46]
[421923488,1778335613000,-160.0,0.000364,49]
[421923496,1778335613000,-958.277,0.00037573,48]
[421923494,1778335613000,-191.26444496,0.000372,120]
[421923492,1778335613000,-164.0,0.00036842,30]
[421923493,1778335613000,-315.0,0.00036842,30]
[421923491,1778335613000,-161.0,0.00036841,30]
[421923490,1778335613000,-1317.0,0.00036837,30]
[421923489,1778335613000,-658.0,0.00036837,30]
[421923504,1778335613000,-500.0,0.00038328,30]
[421923495,1778335613000,-160.0,0.000374,53]
[421923506,1778335613000,-1795.0,0.00038329,120]
[421923521,1778335613000,-414.67,0.000394,30]
[421923508,1778335613000,-1501.5,0.00038329,120]
[421923507,1778335613000,-1501.5,0.00038329,120]
[421923525,1778335613000,-243.77,0.00039683,120]
[421923523,1778335613000,-151.75,0.00039534,120]
[421923524,1778335613000,-151.75,0.00039634,120]
[421923522,1778335613000,-151.75,0.00039434,120]
[421923520,1778335613000,-463.44,0.000394,30]
[421923519,1778335613000,-151.75,0.00039334,120]
[421923518,1778335613000,-151.75,0.00039234,120]
[421923526,1778335613000,-151.75,0.00039734,120]
[421923515,1778335613000,-151.75,0.00038934,120]
[421923517,1778335613000,-151.75,0.00039134,120]
[421923510,1778335613000,-2465.0,0.00038329,120]
[421923511,1778335613000,-2362.0,0.00038329,120]
[421923509,1778335613000,-2465.0,0.00038329,120]
[421923512,1778335613000,-2359.0,0.00038329,120]
[421923514,1778335613000,-160.0,0.000384,57]
[421923516,1778335613000,-151.75,0.00039034,120]
[421923513,1778335613000,-151.27673064,0.00038329,120]
[421923544,1778335614000,-1000.0,0.000405,120]
[421923539,1778335614000,-2450.53,0.0004029,60]
[421923545,1778335614000,-151.75,0.00040534,120]
[421923542,1778335614000,-50000.0,0.00040411,60]
[421923541,1778335614000,-151.75,0.00040334,120]
[421923540,1778335614000,-463.44,0.000403,30]
[421923538,1778335614000,-268.14,0.0004029,60]
[421923535,1778335614000,-151.75,0.00040034,120]
[421923532,1778335614000,-4300.20446095,0.0004,30]
[421923534,1778335614000,-19007.9239748,0.0004,30]
[421923536,1778335614000,-151.75,0.00040134,120]
[421923533,1778335614000,-13036.64822424,0.0004,30]
[421923531,1778335614000,-1000.0,0.0004,120]
[421923530,1778335614000,-318.15461865,0.0004,120]
[421923529,1778335614000,-151.75,0.00039934,120]
[421923528,1778335614000,-414.67,0.000399,30]
[421923543,1778335614000,-151.75,0.00040434,120]
[421923537,1778335614000,-151.75,0.00040234,120]
[421923527,1778335614000,-151.75,0.00039834,120]
[421923549,1778335614000,-151.75,0.00040734,120]
[421923546,1778335614000,-151.75,0.00040634,120]
[421923547,1778335614000,-150.42,0.0004069,120]
[421923566,1778335614000,-151.75,0.00041034,120]
[421923563,1778335614000,-6800.0,0.00041,120]
[421923565,1778335614000,-90904.37648061,0.00041,30]
[421923564,1778335614000,-1000.0,0.00041,120]
[421923562,1778335614000,-8888.0,0.00041,120]
[421923561,1778335614000,-8888.0,0.00041,120]
[421923559,1778335614000,-500.0,0.00040949,30]
[421923558,1778335614000,-151.75,0.00040934,120]
[421923560,1778335614000,-321432.0,0.0004095,60]
[421923556,1778335614000,-414.67,0.000409,30]
[421923554,1778335614000,-151.75,0.00040834,120]
[421923555,1778335614000,-463.44,0.000409,30]
[421923551,1778335614000,-9756.29,0.0004075,120]
[421923552,1778335614000,-1000.0,0.000408,120]
[421923553,1778335614000,-13014.40183857,0.000408,120]
[421923550,1778335614000,-4832.49,0.0004075,120]
[421923557,1778335614000,-1000.0,0.000409,120]
[421923548,1778335614000,-851.88,0.000407,120]
[421923581,1778335615000,-1000.0,0.000415,120]
[421923579,1778335615000,-150.43,0.0004149,120]
[421923580,1778335615000,-28174.0,0.000415,120]